{"text_format":"1","workbook":"xlsx","n_sheets":5,"sheets":["Accueil","Etat de frais","source","notice","pdf"],"not_rendered":{"charts":0,"images":1,"macros":1,"external_links":0,"defined_names":8,"comments":3,"pivot_tables":0},"unopened":[],"bounds":{"document_bytes":16777216,"sheet_cells":100000,"rows_first":2000,"rows_last":500,"rows_between":2000,"halvings":0,"cell_chars":16384,"cell_head_chars":4096},"cells_cut":0,"cells_raw":0,"read":"whole","date_system":"1900"}

{"sheet":"Accueil","index":0,"n_rows":71,"n_cols":8,"rows_kept":71,"cut":false,"hidden":false,"merged":[[32,0,32,9],[33,0,33,9],[4,4,6,7],[25,1,25,8],[26,1,26,8],[15,1,15,8],[19,2,19,4],[19,7,19,8],[18,7,18,8],[19,5,19,6],[20,5,20,6],[20,7,20,8],[20,2,20,4],[18,2,18,4],[21,2,21,4],[22,2,22,4]]}
[]
[]
[]
[]
[null,null,null,null,"FORMATION CONTINUE\nPRISE EN CHARGE DES FRAIS DE DEPLACEMENT"]
[]
[]
[]
[null,"Pour activer la saisie du fichier, cliquer sur "]
[null,"1/ activer la modification"]
[null,"2/ activer le contenu"]
[null,"3/ utiliser le menu déroulant pour compléter l'état de frais"]
[]
[null,"Dans le cadre de la formation continue, vous avez suivi ou animé une formation"]
[]
[null,"Vous pouvez bénéficier d'une prise en charge de vos frais de déplacement dans les conditions prévues par la réglementation en vigueur  : Décret n°2006-781 du 3 juillet 2006 modifié, fixant les conditions et les modalités de règlement des frais occasionnés par les déplacements temporaires des personnels civils de l'Etat"]
[]
[]
[null,"Vous êtes","à sélectionner obligatoirement",null,null,{"$f":"IF(C19=\"Formateur\", \"Précisez\",)","v":0},null,"à sélectionner obligatoirement"]
[null,{"$f":"IF(C19=\"stagiaire\", \"Précisez\",)","v":0},"à sélectionner obligatoirement",null,null,"Vous intervenez pour ",null,"à sélectionner obligatoirement"]
[null,{"$f":"IF(AND(C19=\"stagiaire\",C20=\"Professeur des écoles, IEN du 1e degré\"),\"dans le département\",IF(AND(C19=\"stagiaire\",C20=\"AESH - Accompagnant des Elèves en Situation de Handicap\"),\"dans le département\",IF(AND(C19=\"stagiaire\",C20=\"Psychologue de l'éducation nationale du 1e degré\"),\"dans le département\",)))","v":0},"67 : Bas-Rhin",null,null,{"$f":"IF(AND(C19=\"formateur\",H20=\"Professeur des écoles, IEN du 1e degré\"),\"dans le département\",IF(AND(C19=\"formateur\",H20=\"AESH - Accompagnant des Elèves en Situation de Handicap\"),\"dans le département\",IF(AND(C19=\"formateur\",H20=\"Psychologue de l'éducation nationale du 1e degré\"),\"dans le département\",)))","v":0},null,"68 : Haut-Rhin"]
[null,{"$f":"IF(AND(C19=\"stagiaire\",C20=\"AED - Assistant d'éducation ou APS - Assistant chargé de prévention et de sécurité\"),\"Précisez\",\"\")","v":""},"à sélectionner"]
[null,{"$f":"IF(AND(C19=\"stagiaire\",C20=\"AESH - Accompagnant des Elèves en Situation de Handicap\"),\"Précisez votre employeur\",\"\")","v":""}]
[]
[]
[null,"Afin de respecter le principe d'annualité des crédits, il revient aux missionnés de faire parvenir leurs états de frais et notamment dans le mois qui suit la formation.\n\n\n\n"]
[]
[]
[]
[]
[]
["profil de l'agent pour déterminer l'adresse d'envoi"]
[{"$f":"IF(AND(C19=\"formateur\",F21=\"dans le département\"),CONCATENATE(C19,\"-\",H19,\"-\",H20,\"-\",H21),CONCATENATE(C19,\"-\",H19,\"-\",H20))","v":"à sélectionner obligatoirement-à sélectionner obligatoirement-à sélectionner obligatoirement"}]
[{"$f":"IF(AND(C19=\"stagiaire\",B21=\"dans le département\"),CONCATENATE(C19,\"-\",C20,\"-\",C21),CONCATENATE(C19,\"-\",C20))","v":"à sélectionner obligatoirement-à sélectionner obligatoirement"}]
[]
[]
[]
["les combinaisons possibles (triés de A-Z) sont "]
["formateur-Intervenant extérieur-AED - Assistant d'éducation ou APS - Assistant chargé de prévention et de sécurité"]
["formateur-Intervenant extérieur-AESH - Accompagnant des Elèves en Situation de Handicap-67 : Bas-Rhin"]
["formateur-Intervenant extérieur-AESH - Accompagnant des Elèves en Situation de Handicap-68 : Haut-Rhin"]
["formateur-Intervenant extérieur-Assistant de langues vivantes"]
["formateur-Intervenant extérieur-Enseignant du 2nd degré"]
["formateur-Intervenant extérieur-Personnel d'administration, technique, santé, sociaux ou d'encadrement"]
["formateur-Intervenant extérieur-Professeur des écoles, IEN du 1e degré-67 : Bas-Rhin"]
["formateur-Intervenant extérieur-Professeur des écoles, IEN du 1e degré-68 : Haut-Rhin"]
["formateur-Intervenant extérieur-Psychologue de l'éducation nationale du 1e degré-67 : Bas-Rhin"]
["formateur-Intervenant extérieur-Psychologue de l'éducation nationale du 1e degré-68 : Haut-Rhin"]
["formateur-Intervenant extérieur-Psychologue de l'éducation nationale du 2nd degré"]
["formateur-Personnel de l'éducation nationale-AED - Assistant d'éducation ou APS - Assistant chargé de prévention et de sécurité"]
["formateur-Personnel de l'éducation nationale-AESH - Accompagnant des Elèves en Situation de Handicap-67 : Bas-Rhin"]
["formateur-Personnel de l'éducation nationale-AESH - Accompagnant des Elèves en Situation de Handicap-68 : Haut-Rhin"]
["formateur-Personnel de l'éducation nationale-Assistant de langues vivantes"]
["formateur-Personnel de l'éducation nationale-Enseignant du 2nd degré"]
["formateur-Personnel de l'éducation nationale-Personnel d'administration, technique, santé, sociaux ou d'encadrement"]
["formateur-Personnel de l'éducation nationale-Professeur des écoles, IEN du 1e degré-67 : Bas-Rhin"]
["formateur-Personnel de l'éducation nationale-Professeur des écoles, IEN du 1e degré-68 : Haut-Rhin"]
["formateur-Personnel de l'éducation nationale-Psychologue de l'éducation nationale du 1e degré-67 : Bas-Rhin"]
["formateur-Personnel de l'éducation nationale-Psychologue de l'éducation nationale du 1e degré-68 : Haut-Rhin"]
["formateur-Personnel de l'éducation nationale-Psychologue de l'éducation nationale du 2nd degré"]
["stagiaire-AED - Assistant d'éducation ou APS - Assistant chargé de prévention et de sécurité"]
["stagiaire-AESH - Accompagnant des Elèves en Situation de Handicap-67 : Bas-Rhin"]
["stagiaire-AESH - Accompagnant des Elèves en Situation de Handicap-68 : Haut-Rhin"]
["stagiaire-Assistant de langues vivantes"]
["stagiaire-Enseignant du 2nd degré"]
["stagiaire-Personnel d'administration, technique, santé, sociaux ou d'encadrement"]
["stagiaire-Professeur des écoles, IEN du 1e degré-67 : Bas-Rhin"]
["stagiaire-Professeur des écoles, IEN du 1e degré-68 : Haut-Rhin"]
["stagiaire-Psychologue de l'éducation nationale du 1e degré-67 : Bas-Rhin"]
["stagiaire-Psychologue de l'éducation nationale du 1e degré-68 : Haut-Rhin"]
["stagiaire-Psychologue de l'éducation nationale du 2nd degré"]

{"sheet":"Etat de frais","index":1,"n_rows":100,"n_cols":21,"rows_kept":100,"cut":false,"hidden":true,"merged":[[91,1,91,10],[90,1,90,5],[95,2,95,6],[88,2,88,6],[89,2,89,9],[93,1,93,5],[93,6,93,10],[80,1,80,2],[71,0,73,1],[72,9,74,10],[81,1,81,2],[15,8,15,10],[78,1,78,2],[25,1,26,3],[29,5,29,10],[33,5,33,10],[37,5,37,10],[41,5,41,10],[51,5,51,10],[55,5,55,10],[59,5,59,10],[63,5,63,10],[67,5,67,10],[14,8,14,10],[17,2,17,5],[70,1,70,4],[25,7,25,9],[25,6,26,6],[20,2,20,5],[21,2,21,5],[16,8,16,10],[25,10,26,10],[22,2,22,5],[17,8,17,10],[17,6,17,7],[25,5,26,5],[24,1,24,6],[45,5,45,10],[99,1,99,10],[2,1,2,10],[1,5,1,7],[16,2,16,5],[8,2,8,5],[15,2,15,5],[9,2,9,5],[10,2,10,5],[11,2,11,5],[12,2,12,5],[7,2,7,5],[14,2,14,5],[15,6,15,7],[16,6,16,7],[3,1,3,10],[4,1,4,10]]}
[]
[null,null,null,null,null,"FORMATION CONTINUE\n\nDECLARATION ETAT DE FRAIS"]
[]
[null,{"$f":"IF(OR(C8=0,C9=0,C10=0,C11=0,C12=0,C13=0,M16=0,M19=0,F28=0,H28=0,G28=0,I28=0,J28=0,K28=0,Q71=\"faux\",E79=\"\",E81=\"\",P87=\"faux\"),\"Veuillez saisir les champs obligatoires*\",\"Tous les champs obligatoires ont été saisis : merci !\")","v":"Veuillez saisir les champs obligatoires*"},null,null,null,null,null,null,null,null,null,null,{"$f":"IF(OR(C8=0,C9=0,C10=0,C11=0,C12=0,C13=0,M16=0,M19=0,F28=0,H28=0,G28=0,I28=0,J28=0,K28=0,Q71=\"faux\",E79=0,E81=0,P87=\"faux\"),\"Veuillez saisir les champs obligatoires*\",\"Tous les champs obligatoires ont été saisis : merci !\")","v":"Veuillez saisir les champs obligatoires*"}]
[null,{"$f":"IF(OR(AND(Accueil!C19=\"formateur\",P87=\"VRAI\"),(AND(Accueil!C19=\"stagiaire\",P86=\"VRAI\"))),\"Merci d'avoir joint vos pièces justificatives\",\"Veuillez joindre les pièces justificatives\")","v":"Veuillez joindre les pièces justificatives"}]
[]
[null,{"$f":"IF(OR(C8=0,C9=0,C10=0,C11=0,C12=0,C13=0,M16=0,M19=0),\"1 - Renseigner votre état civil\",\"1-Votre état civil est renseigné\")","v":"1 - Renseigner votre état civil"}]
[null,"Nom d'usage*"]
[null,"Nom de de naissance*"]
[null,"Prénom*"]
[null,"Né(e) le*"]
[null,"Né(e) à*"]
[]
[]
[null,null,"Résidence familiale*",null,null,null,null,null,"Résidence administrative*",null,null,null,"Est-ce que l'adresse de résidence familiale a bien été saisie (3 conditions cumulatives)"]
[null,"rue",null,null,null,null,null,null,null,null,null,null,{"$f":"IF(AND(C16>0,C17>0,C18>0),\"ok\",)","v":0}]
[null,"code postal"]
[null,"Ville",null,null,null,null,null,null,null,null,null,null,"Est-ce que l'adresse de résidence administrative a bien été saisie (3 conditions cumulatives)"]
[null,null,null,null,null,null,null,null,null,null,null,null,{"$f":"IF(AND(I16>0,I17>0,I18>0),\"ok\",)","v":0}]
[null,"2- indiquer vos coordonnées"]
[null,"Téléphone"]
[null,"Mobile"]
[null,"Adresse mail",null,null,null,null,{"$f":"IF(Accueil!C19=\"à sélectionner obligatoirement\", \"\",IF(AND(Accueil!C19=\"formateur\",Accueil!H19=\"Intervenant extérieur\"),\"\",IF(AND(Accueil!C19=\"stagiaire\",Accueil!C20=\"AESH - Accompagnant des Elèves en Situation de Handicap\"),\"\",\"@ac-strasbourg.fr\")))","v":""}]
[]
[null,{"$f":"IF(OR(F28=0,H28=0,G28=0,I28=0,J28=0,K28=0),\"3 - Renseigner les informations relatives à votre formation\", \"3- Les informations relatives à la formation sont saisies\")","v":"3- Les informations relatives à la formation sont saisies"}]
[null,"Cadre réservé à l'administration",null,null,null,"Date*","Heure de départ*","ITINERAIRE",null,null,"Heure de retour*",null,"Est-ce que l'itinéraire a bien a été saisie ?"]
[null,null,null,null,null,null,null,"Commune de départ*","Lieu de la formation*","Commune de retour*",null,null,{"$f":"IF(OR(H28=0,I28=0,J28=0),0,\"ok\")","v":"ok"}]
[null,"Dispositif de formation","numéro de module","km",1,"2022-06-27","08:00:00","Colmar","Ecole de Biesheim","Colmar","09:00:00",null,{"$f":"C18","v":0},{"$f":"I18","v":0},"Autre : précisez"]
[null,null,null,null,null,"Commentaires"]
[]
[]
[null,null,null,null,2,null,null,null,null,null,null,null,"2021-03-05","09:00:00","Biesheim","Ecole de Andolsheim","Andolsheim","12:00:00"]
[null,null,null,null,null,"Commentaires"]
[]
[]
[null,null,null,null,3,null,null,null,null,null,null,null,"2021-03-05","14:00:00","Andolsheim",null,"Colmar","17:00:00"]
[null,null,null,null,null,"Commentaires"]
[]
[]
[null,null,null,null,4]
[null,null,null,null,null,"Commentaires"]
[]
[]
[null,null,null,null,5]
[null,null,null,null,null,"Commentaires"]
[]
[]
[]
[]
[null,"Dispositif de formation","numéro de module","km",6]
[null,null,null,null,null,"Commentaires"]
[]
[]
[null,null,null,null,7]
[null,null,null,null,null,"Commentaires"]
[]
[]
[null,null,null,null,8]
[null,null,null,null,null,"Commentaires"]
[]
[]
[null,null,null,null,9]
[null,null,null,null,null,"Commentaires"]
[]
[]
[null,null,null,null,10]
[null,null,null,null,null,"Commentaires"]
[]
[]
[]
[null,"Modes de transport utilisé*",null,null,null,null,null,null,null,null,null,null,"Est-ce que l'un des modes de transports est utilisé ?",null,null,null,{"$f":"IF(OR(N72=TRUE,N73=TRUE,N74=TRUE,P72=TRUE,P73=TRUE,R72=TRUE,R73=TRUE),\"oui\",\"non\")","v":"non"}]
[{"$f":"IF(N72=TRUE, N78,)","v":0},null,null,null,null,null,null,null,null,null,null,null,{"$f":"source!B25","v":"Avion"},false,{"$f":"source!B28","v":"Train"},false,{"$f":"source!B30","v":"Véhicule administratif"},false]
[null,null,null,null,null,null,null,null,null,{"$f":"IF(R72=TRUE,N79,IF(R73=TRUE,N80,))","v":0},null,null,{"$f":"source!B26","v":"Covoiturage"},false,{"$f":"source!B29","v":"Transports urbains (Métro, RER, tram, bus navettes)"},false,{"$f":"source!B31","v":"Véhicule personnel"},false]
[null,null,null,null,null,null,null,null,null,null,null,null,{"$f":"source!B27","v":"Taxi (soumis à conditions)"},false]
[]
[null,null,null,null,null,null,null,null,"Puissance fiscale CV","5 CV et moins",null,null,"SI Mode de transport sélectionné"]
[]
[null,null,null,null,null,null,null,null,"Plaque d'immatriculation du véhicule",null,null,null,{"$f":"M72","v":"Avion"},"L'utilisation de l'avion est soumise à l'autorisation académique sauf s'il est le moyen de transport le moins onéreux."]
[null,"Nombre de repas pris*",null,null,null,null,null,null,null,null,null,null,"véhicule administratif","L'utilisation du véhicule  est soumise à autorisation de l'autorité qui ordonne le déplacement"]
[null,null,null,null,null,null,null,null,null,null,null,null,"véhicule personnel","L'utilisation du véhicule  est soumise à autorisation de l'autorité qui ordonne le déplacement"]
[null,"Nombre de nuitées réglées par le missionné*"]
[null,"Nombre de nuitées déjà prises en charge par l'administration",null,null,null,null,null,null,null,null,null,null,"véhicule personnel","affichage puissance fiscale CV + plaque d'immatriculation du véhicule"]
[]
[null,{"$f":"IF(B5=\"Veuillez joindre les pièces justificatives\",\"4- JOINDRE les pièces justificatives*\",\"4- Les pièces justificatives sont prêtes à être jointes au dossier \")","v":"4- JOINDRE les pièces justificatives*"}]
[null,null,null,null,null,null,null,null,null,null,null,null,"Est-ce que l'agent est un stagiaire ou un formateur ?",null,null,{"$f":"Accueil!C19","v":"à sélectionner obligatoirement"},null,"Stagiaire/Formateur ","stagiaire","formateur"]
[null,null,null,null,null,null,null,null,null,null,null,null,"Est-ce que les PJ sont jointes pour le stagiaire ?",null,null,{"$f":"IF(AND(S90=TRUE,OR(S86=TRUE,S87=TRUE,S89=TRUE)),\"vrai\",\"faux\")","v":"faux"},null,false,{"$f":"R86","v":false},{"$f":"R86","v":false},"1/ les 3e conditions sont non cumulatives"]
[null,null,null,null,null,null,null,null,null,null,null,null,"Est-ce que les PJ sont jointes pour le formateur ?",null,null,{"$f":"IF(AND(T90=TRUE,OR(T86=TRUE,T88=TRUE,T89=TRUE)),\"vrai\",\"faux\")","v":"faux"},null,null,false]
[null,null,null,null,null,null,null,null,null,null,null,null,null,null,null,null,null,null,null,false]
[null,null,null,null,null,null,null,null,null,null,null,null,null,null,null,null,null,false,{"$f":"R89","v":false},{"$f":"R89","v":false}]
[null,null,"Le RIB/IBAN doit être à votre nom et prénom. Si le seul prénom de votre conjoint(e) apparait, la production d'une copie du livret de famille, de l'acte de mariage ou de la convention de PACS est obligatoire.",null,null,null,null,null,null,null,null,null,null,null,null,null,null,false,{"$f":"R90","v":false},{"$f":"R90","v":false},"2/l'une des 3e conditions ET celle du RIB/IBAN doivent être cumulées"]
[null,"5 - IMPRIMER et SIGNER le formulaire"]
[null,"Je soussigné(e) certifie de l'exactitude des renseignements portés ci-dessus et que les frais exposés ne sont pas pris en charge par un autre organisme"]
[null,"Validation du supérieur hiérarchique de l'intéressé",null,null,null,null,"Signature de l'intéressé",null,"le ",{"$f":"TODAY()","v":"2022-06-27"}]
[]
[null,"6 - TRANSMETTRE le formulaire validé à l'adresse suivante : "]
[null,null,{"$f":"IF(Accueil!C19=\"à sélectionner obligatoirement\",\"merci de sélectionner votre profil sur la page d'accueil afin de vous orienter avec le service adéquat\",IF(Accueil!C19=\"stagiaire\",IFERROR(VLOOKUP(Accueil!A34,source!$B$48:$C$80,2,FALSE),\"merci de sélectionner votre profil sur la page d'accueil afin de vous orienter avec le service adéquat\"),IFERROR(VLOOKUP(Accueil!A33,source!$B$48:$C$80,2,FALSE),\"merci de sélectionner votre profil sur la page d'accueil afin de vous orienter avec le service adéquat\")))","v":"merci de sélectionner votre profil sur la page d'accueil afin de vous orienter avec le service adéquat"}]
[]
[null,"ou par courriel à",{"$f":"IF(Accueil!C19=\"stagiaire\",VLOOKUP(Accueil!A34,source!$B$48:$D$80,3,FALSE),VLOOKUP(Accueil!A33,source!$B$48:$D$80,3,FALSE))","v":{"$error":"#N/A"}}]
[]
[null,"Ce traitement est mis en œuvre sous la responsabilité de Monsieur le Recteur de l’académie de Strasbourg.\nIl a pour finalité de traiter votre demande de prise en charge des frais de déplacement\nCe traitement est nécessaire à l’exécution d’une mission d’intérêt public ou relevant de l’exercice de l’intérêt public dont est investi le responsable de traitement. Les destinataires des données sont les services habilités, dans la limite de leurs attributions.\nLes données sont conservées de façon sécurisée jusqu’à cessation de fonctions dans l’académie, puis archivées en fonction des textes réglementaires (au maximum 10 ans)\nPour toute question relative au traitement de vos données à caractère personnel, vous pouvez contacter le délégué à la protection des données de l’académie de Strasbourg, par voie postale (Rectorat de l’académie de Strasbourg, 6 rue de la Toussaint 67000 Strasbourg) ou par courrier électronique : dpd@ac-strasbourg.fr\nConformément à la loi « Informatique et Libertés » du 6 janvier 1978 modifiée et au Règlement Général sur la Protection des Données du 27 avril 2016, vous disposez des droits d’accès, de rectification, d’effacement (droit à l’oubli) et à la limitation du traitement prévus aux articles 15, 16, 17 et 18 du RGPD. Dans le cadre de l’exercice de vos droits, vous devrez justifier de votre identité par tout moyen. En cas de doute sur votre identité, les services chargés du droit d’accès et le délégué à la protection des données se réservent le droit de vous demander les informations supplémentaires qui leur apparaissent nécessaires, y compris la photocopie d’un titre d’identité portant votre signature.\nSi vous estimez, même après avoir introduit une réclamation auprès du responsable de traitement, que vos droits en matière de protection des données à caractère personnel ne sont pas respectés, vous avez la possibilité d’introduire une réclamation auprès de la Commission nationale de l’informatique et des libertés (CNIL) à l’adresse suivante : 3 Place de Fontenoy – TSA 80715 – 75334 Paris Cedex 07."]

{"sheet":"source","index":2,"n_rows":80,"n_cols":9,"rows_kept":80,"cut":false,"hidden":true,"merged":[]}
["vous êtes","à sélectionner obligatoirement",null,"stagiaire",null,"formateur",null,"Si….","alors "]
[null,"stagiaire"]
[null,"formateur",null,"à sélectionner obligatoirement",null,"à sélectionner obligatoirement",null,"stagiaire-AESH ","employeur à préciser"]
[null,null,null,"AED - Assistant d'éducation ou APS - Assistant chargé de prévention et de sécurité",null,"Personnel de l'éducation nationale",null,"Stagiaire-AED","à sélectionner"]
[null,null,null,"AESH - Accompagnant des Elèves en Situation de Handicap",null,"Intervenant extérieur",null,null,"Personnel de l'éducation nationale"]
[null,null,null,"Assistant de langues vivantes",null,null,null,null,"Intervenant extérieur"]
[null,null,null,"Enseignant du 2nd degré"]
[null,null,null,"Personnel d'administration, technique, santé, sociaux ou d'encadrement"]
[null,null,null,"Professeur des écoles, IEN du 1e degré"]
[null,null,null,"Psychologue de l'éducation nationale du 2nd degré"]
[null,null,null,"Psychologue de l'éducation nationale du 1e degré"]
[]
[null,null,null,"Précisions si enseignant 1e degré/AESH",null,"Précision si intervenant extérieur",null,"Quel service ?"]
[null,null,null,"67 : Bas-Rhin",null,"à sélectionner obligatoirement"]
[null,null,null,"68 : Haut-Rhin",null,{"$f":"D4","v":"AED - Assistant d'éducation ou APS - Assistant chargé de prévention et de sécurité"},null,"DAFOR"]
[null,null,null,null,null,"AESH - Accompagnant des Elèves en Situation de Handicap",null,"AESH67/AESH68"]
[null,null,null,null,null,"Assistant de langues vivantes",null,"DAFOR"]
[null,null,null,null,null,"Enseignant du 2nd degré",null,"DAFOR"]
[null,null,null,null,null,"Personnel d'administration, technique, santé, sociaux ou d'encadrement",null,"DAFOR"]
[null,null,null,null,null,"Professeur des écoles, IEN du 1e degré",null,"FC67/FC68"]
[null,null,null,null,null,"Psychologue de l'éducation nationale du 2nd degré",null,"DAFOR"]
[null,null,null,null,null,"Psychologue de l'éducation nationale du 1e degré",null,"FC67/FC68"]
[]
["mode de transport","à présenter en case à cocher",null,"CV"]
[null,"Avion",null,"5 CV et moins"]
[null,"Covoiturage",null,"6 CV et 7 CV"]
[null,"Taxi (soumis à conditions)",null,"8 CV et plus"]
[null,"Train"]
[null,"Transports urbains (Métro, RER, tram, bus navettes)"]
[null,"Véhicule administratif"]
[null,"Véhicule personnel"]
[null,"ne pas proposer le parking pour en limiter son utilisation"]
[]
[]
["adresse"]
[null,"référence","adresse postale","courriel"]
[]
[null,"FC67","Direction des services départementaux de l'éducation nationale du Bas Rhin\nDivision du 1e degré - Bureau de la formation continue\n65 Avenue de la Forêt Noire\n67083 Strasbourg Cedex\n","ce.1er-degre67formation@ac-strasbourg.fr"]
[null,"FC68","Direction des services départementaux de l'éducation nationale du Haut Rhin\nFormation continue du 1e degré\n52-54, avenue de la République\nBP 60092\n68017 COLMAR Cedex","ce.formation-continue68@ac-strasbourg.fr"]
[null,"AESH67","Direction des services départementaux de l'éducation nationale du Bas Rhin\nService de l'Ecole Inclusive\n65 Avenue de la Forêt Noire\n67083 Strasbourg Cedex\n","assistant.ash67@ac-strasbourg.fr"]
[null,"AESH68","Direction des services départementaux de l'éducation nationale du Haut Rhin\nBureau de gestion administrative des AESH du Haut-Rhin\n52-54, avenue de la République\nBP 60092\n68017 COLMAR Cedex","ce.plateforme-contratsaides@ac-strasbourg.fr"]
[null,"DAFOR","Rectorat de l'académie de Strasbourg\nDAFOR\n6, rue de la Toussaint\n67975 Strasbourg Cedex 9","ce.dafor@ac-strasbourg.fr"]
[]
[]
[]
["BASE",null,null,null,null,null,"contrôle de cohérence"]
["référence","population concernée","adresse postale","courriel"]
["AESH67","formateur-Intervenant extérieur-AESH - Accompagnant des Elèves en Situation de Handicap-67 : Bas-Rhin",{"$f":"VLOOKUP(A48,$B$38:$D$42,2,FALSE)","v":"Direction des services départementaux de l'éducation nationale du Bas Rhin\nService de l'Ecole Inclusive\n65 Avenue de la Forêt Noire\n67083 Strasbourg Cedex\n"},{"$f":"VLOOKUP(A48,$B$38:$D$42,3,FALSE)","v":"assistant.ash67@ac-strasbourg.fr"}]
["AESH67","formateur-Personnel de l'éducation nationale-AESH - Accompagnant des Elèves en Situation de Handicap-67 : Bas-Rhin","Direction des services départementaux de l'éducation nationale du Bas Rhin\nService de l'Ecole Inclusive\n65 Avenue de la Forêt Noire\n67083 Strasbourg Cedex\n","assistant.ash67@ac-strasbourg.fr"]
["AESH67","stagiaire-AESH - Accompagnant des Elèves en Situation de Handicap-67 : Bas-Rhin","Direction des services départementaux de l'éducation nationale du Bas Rhin\nService de l'Ecole Inclusive\n65 Avenue de la Forêt Noire\n67083 Strasbourg Cedex\n","assistant.ash67@ac-strasbourg.fr"]
["AESH68","formateur-Intervenant extérieur-AESH - Accompagnant des Elèves en Situation de Handicap-68 : Haut-Rhin",{"$f":"VLOOKUP(A51,$B$38:$D$42,2,FALSE)","v":"Direction des services départementaux de l'éducation nationale du Haut Rhin\nBureau de gestion administrative des AESH du Haut-Rhin\n52-54, avenue de la République\nBP 60092\n68017 COLMAR Cedex"},"ce.plateforme-contratsaides@ac-strasbourg.fr"]
["AESH68","formateur-Personnel de l'éducation nationale-AESH - Accompagnant des Elèves en Situation de Handicap-68 : Haut-Rhin","Direction des services départementaux de l'éducation nationale du Haut Rhin\nBureau de gestion administrative des AESH du Haut-Rhin\n52-54, avenue de la République\nBP 60092\n68017 COLMAR Cedex","ce.plateforme-contratsaides@ac-strasbourg.fr"]
["AESH68","stagiaire-AESH - Accompagnant des Elèves en Situation de Handicap-68 : Haut-Rhin","Direction des services départementaux de l'éducation nationale du Haut Rhin\nBureau de gestion administrative des AESH du Haut-Rhin\n52-54, avenue de la République\nBP 60092\n68017 COLMAR Cedex","ce.plateforme-contratsaides@ac-strasbourg.fr"]
["DAFOR","formateur-Intervenant extérieur-AED - Assistant d'éducation ou APS - Assistant chargé de prévention et de sécurité","Rectorat de l'académie de Strasbourg\nDAFOR\n6, rue de la Toussaint\n67975 Strasbourg Cedex 9","ce.dafor@ac-strasbourg.fr"]
["DAFOR","formateur-Intervenant extérieur-Assistant de langues vivantes","Rectorat de l'académie de Strasbourg\nDAFOR\n6, rue de la Toussaint\n67975 Strasbourg Cedex 9","ce.dafor@ac-strasbourg.fr"]
["DAFOR","formateur-Intervenant extérieur-Enseignant du 2nd degré","Rectorat de l'académie de Strasbourg\nDAFOR\n6, rue de la Toussaint\n67975 Strasbourg Cedex 9","ce.dafor@ac-strasbourg.fr"]
["DAFOR","formateur-Intervenant extérieur-Personnel d'administration, technique, santé, sociaux ou d'encadrement","Rectorat de l'académie de Strasbourg\nDAFOR\n6, rue de la Toussaint\n67975 Strasbourg Cedex 9","ce.dafor@ac-strasbourg.fr"]
["DAFOR","formateur-Personnel de l'éducation nationale-AED - Assistant d'éducation ou APS - Assistant chargé de prévention et de sécurité","Rectorat de l'académie de Strasbourg\nDAFOR\n6, rue de la Toussaint\n67975 Strasbourg Cedex 9","ce.dafor@ac-strasbourg.fr"]
["DAFOR","formateur-Personnel de l'éducation nationale-Assistant de langues vivantes","Rectorat de l'académie de Strasbourg\nDAFOR\n6, rue de la Toussaint\n67975 Strasbourg Cedex 9","ce.dafor@ac-strasbourg.fr"]
["DAFOR","formateur-Personnel de l'éducation nationale-Enseignant du 2nd degré","Rectorat de l'académie de Strasbourg\nDAFOR\n6, rue de la Toussaint\n67975 Strasbourg Cedex 9","ce.dafor@ac-strasbourg.fr"]
["DAFOR","formateur-Personnel de l'éducation nationale-Personnel d'administration, technique, santé, sociaux ou d'encadrement","Rectorat de l'académie de Strasbourg\nDAFOR\n6, rue de la Toussaint\n67975 Strasbourg Cedex 9","ce.dafor@ac-strasbourg.fr"]
["DAFOR","stagiaire-Assistant de langues vivantes","Rectorat de l'académie de Strasbourg\nDAFOR\n6, rue de la Toussaint\n67975 Strasbourg Cedex 9","ce.dafor@ac-strasbourg.fr"]
["DAFOR","stagiaire-Enseignant du 2nd degré","Rectorat de l'académie de Strasbourg\nDAFOR\n6, rue de la Toussaint\n67975 Strasbourg Cedex 9","ce.dafor@ac-strasbourg.fr"]
["DAFOR","stagiaire-AED - Assistant d'éducation ou APS - Assistant chargé de prévention et de sécurité","Rectorat de l'académie de Strasbourg\nDAFOR\n6, rue de la Toussaint\n67975 Strasbourg Cedex 9","ce.dafor@ac-strasbourg.fr"]
["DAFOR","stagiaire-Personnel d'administration, technique, santé, sociaux ou d'encadrement","Rectorat de l'académie de Strasbourg\nDAFOR\n6, rue de la Toussaint\n67975 Strasbourg Cedex 9","ce.dafor@ac-strasbourg.fr"]
["FC67","formateur-Intervenant extérieur-Professeur des écoles, IEN du 1e degré-67 : Bas-Rhin","Direction des services départementaux de l'éducation nationale du Bas Rhin\nDivision du 1e degré - Bureau de la formation continue\n65 Avenue de la Forêt Noire\n67083 Strasbourg Cedex\n","ce.1er-degre67formationcontinue@ac-strasbourg.fr"]
["FC67","formateur-Personnel de l'éducation nationale-Professeur des écoles, IEN du 1e degré-67 : Bas-Rhin","Direction des services départementaux de l'éducation nationale du Bas Rhin\nDivision du 1e degré - Bureau de la formation continue\n65 Avenue de la Forêt Noire\n67083 Strasbourg Cedex\n","ce.1er-degre67formationcontinue@ac-strasbourg.fr"]
["FC67","stagiaire-Professeur des écoles, IEN du 1e degré-67 : Bas-Rhin","Direction des services départementaux de l'éducation nationale du Bas Rhin\nDivision du 1e degré - Bureau de la formation continue\n65 Avenue de la Forêt Noire\n67083 Strasbourg Cedex\n","ce.1er-degre67formationcontinue@ac-strasbourg.fr"]
["FC68","formateur-Intervenant extérieur-Professeur des écoles, IEN du 1e degré-68 : Haut-Rhin","Direction des services départementaux de l'éducation nationale du Haut Rhin\nFormation continue du 1e degré\n52-54, avenue de la République\nBP 60092\n68017 COLMAR Cedex","ce.formation-continue68@ac-strasbourg.fr"]
["FC68","formateur-Personnel de l'éducation nationale-Professeur des écoles, IEN du 1e degré-68 : Haut-Rhin","Direction des services départementaux de l'éducation nationale du Haut Rhin\nFormation continue du 1e degré\n52-54, avenue de la République\nBP 60092\n68017 COLMAR Cedex","ce.formation-continue68@ac-strasbourg.fr"]
["FC68","stagiaire-Professeur des écoles, IEN du 1e degré-68 : Haut-Rhin",{"$f":"VLOOKUP(A71,$B$38:$D$42,2,FALSE)","v":"Direction des services départementaux de l'éducation nationale du Haut Rhin\nFormation continue du 1e degré\n52-54, avenue de la République\nBP 60092\n68017 COLMAR Cedex"},"ce.formation-continue68@ac-strasbourg.fr"]
["DAFOR","stagiaire-Psychologue de l'éducation nationale du 2nd degré","Rectorat de l'académie de Strasbourg\nDAFOR\n6, rue de la Toussaint\n67975 Strasbourg Cedex 9","ce.dafor@ac-strasbourg.fr"]
["FC68","stagiaire-Psychologue de l'éducation nationale du 1e degré-68 : Haut-Rhin","Direction des services départementaux de l'éducation nationale du Haut Rhin\nFormation continue du 1e degré\n52-54, avenue de la République\nBP 60092\n68017 COLMAR Cedex","ce.formation-continue68@ac-strasbourg.fr"]
["FC67","stagiaire-Psychologue de l'éducation nationale du 1e degré-67 : Bas-Rhin",{"$f":"VLOOKUP(A74,$B$38:$D$42,2,FALSE)","v":"Direction des services départementaux de l'éducation nationale du Bas Rhin\nDivision du 1e degré - Bureau de la formation continue\n65 Avenue de la Forêt Noire\n67083 Strasbourg Cedex\n"},"ce.1er-degre67formationcontinue@ac-strasbourg.fr"]
["DAFOR","formateur-Personnel de l'éducation nationale-Psychologue de l'éducation nationale du 2nd degré","Rectorat de l'académie de Strasbourg\nDAFOR\n6, rue de la Toussaint\n67975 Strasbourg Cedex 9",{"$f":"VLOOKUP(A75,$B$38:$D$42,3,FALSE)","v":"ce.dafor@ac-strasbourg.fr"}]
["FC68","formateur-Personnel de l'éducation nationale-Psychologue de l'éducation nationale du 1e degré-68 : Haut-Rhin","Direction des services départementaux de l'éducation nationale du Haut Rhin\nFormation continue du 1e degré\n52-54, avenue de la République\nBP 60092\n68017 COLMAR Cedex",{"$f":"VLOOKUP(A76,$B$38:$D$42,3,FALSE)","v":"ce.formation-continue68@ac-strasbourg.fr"}]
["FC67","formateur-Personnel de l'éducation nationale-Psychologue de l'éducation nationale du 1e degré-67 : Bas-Rhin","Direction des services départementaux de l'éducation nationale du Bas Rhin\nDivision du 1e degré - Bureau de la formation continue\n65 Avenue de la Forêt Noire\n67083 Strasbourg Cedex\n","ce.1er-degre67formationcontinue@ac-strasbourg.fr"]
["DAFOR","formateur-Intervenant extérieur-Psychologue de l'éducation nationale du 2nd degré","Rectorat de l'académie de Strasbourg\nDAFOR\n6, rue de la Toussaint\n67975 Strasbourg Cedex 9",{"$f":"VLOOKUP(A78,$B$38:$D$42,3,FALSE)","v":"ce.dafor@ac-strasbourg.fr"}]
["FC67","formateur-Intervenant extérieur-Psychologue de l'éducation nationale du 1e degré-67 : Bas-Rhin","Direction des services départementaux de l'éducation nationale du Bas Rhin\nDivision du 1e degré - Bureau de la formation continue\n65 Avenue de la Forêt Noire\n67083 Strasbourg Cedex\n","ce.1er-degre67formationcontinue@ac-strasbourg.fr"]
["FC68","formateur-Intervenant extérieur-Psychologue de l'éducation nationale du 1e degré-68 : Haut-Rhin","Direction des services départementaux de l'éducation nationale du Haut Rhin\nFormation continue du 1e degré\n52-54, avenue de la République\nBP 60092\n68017 COLMAR Cedex",{"$f":"VLOOKUP(A80,$B$38:$D$42,3,FALSE)","v":"ce.formation-continue68@ac-strasbourg.fr"}]

{"sheet":"notice","index":3,"n_rows":27,"n_cols":2,"rows_kept":27,"cut":false,"hidden":true,"merged":[]}
[null,"NOTICE"]
[]
["FORMATEUR"]
["Précisez si vous êtes personnel de l'éducation nationale ou intervenant extérieur"]
[]
["STAGIAIRE précisez si vous êtes "]
["AED - Assistant d'éducation ou APS - Assistant chargé de prévention et de sécurité"]
["AESH - Accompagnant des Elèves en Situation de Handicap"]
["Assistant de langues vivantes"]
["Enseignant du 2nd degré"]
["Personnel d'administration, technique, santé, sociaux ou d'encadrement"]
["Professeur des écoles, IEN du 1e degré"]
["Psychologue de l'éducation nationale du 2nd degré"]
["Psychologue de l'éducation nationale du 1e degré"]
[]
["Né(e) le*"]
["format de la date : JJ/MM/AAAA"]
[]
["Né(e) à*"]
["Précisez la COMMUNE de  naissance"]
[]
["Véhicule administratif"]
["L'utilisation du véhicule  est soumis à autorisation de l'autorité qui ordonne le déplacement"]
[]
["Véhicule personnel"]
["L'utilisation du véhicule  est soumis à autorisation de l'autorité qui ordonne le déplacement"]
["la puissance fiscale CV et la plaque d'immatriculation du véhicule sont à préciser"]

{"sheet":"pdf","index":4,"n_rows":0,"n_cols":0,"rows_kept":0,"cut":false,"hidden":true,"merged":[]}